bitfinex/quotes_SOLUSD_20240916
["timestamp","ask_amount","ask_price","bid_price","bid_amount"]
[1726472032408,0.257233,131.4,131.39,84.97492729]
[1726472033296,0.257233,131.4,131.39,107.15072729]
[1726472033612,0.257233,131.4,131.39,105.62902014]
[1726472039999,0.257233,131.4,131.39,83.45322014]
[1726472040195,0.257233,131.4,131.39,43.9743]
[1726472040729,0.257233,131.4,131.39,23.9743]
[1726472042013,0.257233,131.4,131.39,64.97497938]
[1726472043320,0.257233,131.4,131.39,63.45322014]
[1726472046315,0.257233,131.4,131.39,23.9743]
[1726472053026,0.257233,131.4,131.39,47.751184]
[1726472060213,0.257233,131.4,131.39,71.07734567]
[1726472060619,0.257233,131.4,131.39,69.555684]
[1726472061134,0.257233,131.4,131.39,85.25772014]
[1726472061916,0.257233,131.4,131.39,69.555684]
[1726472064421,0.257233,131.4,131.39,85.25772014]
[1726472065727,0.257233,131.4,131.39,86.77937457]
[1726472066245,0.257233,131.4,131.39,85.25772014]
[1726472066544,0.257233,131.4,131.39,69.555684]
[1726472067139,0.257233,131.4,131.39,85.25772014]
[1726472067440,0.257233,131.4,131.39,69.555684]
[1726472068227,0.257233,131.4,131.39,85.25772014]
[1726472070048,0.257233,131.4,131.39,106.77917893]
[1726472070451,0.257233,131.4,131.39,116.46710698]
[1726472074864,0.257233,131.4,131.39,114.94564819]
[1726472075069,0.257233,131.4,131.39,105.25772014]
[1726472075751,0.257233,131.4,131.39,114.94573073]
[1726472076358,0.257233,131.4,131.39,116.46703715]
[1726472077369,0.257233,131.4,131.39,114.94573073]
[1726472078077,0.257233,131.4,131.39,114.93046965]
[1726472079688,3.3e-05,131.4,131.39,124.71574672]
[1726472079983,3.3e-05,131.4,131.39,126.13529648]
[1726472080357,3.3e-05,131.4,131.39,156.13529648]
[1726472080580,3.3e-05,131.4,131.39,126.13529648]
[1726472081259,0.257233,131.44,131.43,23.967]
[1726472081580,0.257233,131.44,131.43,63.44592014]
[1726472083258,0.257233,131.44,131.43,47.743884]
[1726472084484,0.257233,131.44,131.43,49.26506975]
[1726472087066,0.257233,131.44,131.43,64.96710589]
[1726472090994,0.257233,131.44,131.43,49.26506975]
[1726472091194,0.257233,131.44,131.43,47.743884]
[1726472096881,0.257233,131.44,131.43,23.967]
[1726472106598,0.257233,131.44,131.4,17.1222]
[1726472106985,0.257233,131.44,131.4,23.9711]
[1726472108304,7.104433,131.44,131.4,23.9711]
[1726472113432,0.257233,131.44,131.4,17.1222]
[1726472113716,0.257233,131.44,131.41,1.52180637]
[1726472113912,0.257233,131.44,131.4,17.1222]
[1726472114392,0.257233,131.44,131.41,6.8486]
[1726472121429,7.104433,131.44,131.4,23.9713]
[1726472126204,0.257233,131.44,131.4,23.9713]
[1726472127127,7.104433,131.44,131.4,23.9713]
[1726472127420,0.257233,131.44,131.37,17.1261]
[1726472128129,6.8493,131.4,131.37,17.1261]
[1726472129002,0.5143,131.43,131.37,17.1261]
[1726472129003,6.8489,131.41,131.37,23.9769]
[1726472130847,6.8498,131.39,131.35,6.8515]
[1726472131339,0.5143,131.43,131.34,17.1303]
[1726472131340,6.8507,131.38,131.34,17.1303]
[1726472132626,6.8509,131.37,131.32,6.8533]
[1726472132827,6.8504,131.38,131.33,6.8525]
[1726472133211,7.107,131.39,131.34,6.8523]
[1726472135221,6.8504,131.38,131.33,23.9842]
[1726472136027,6.8509,131.37,131.33,23.9842]
[1726472138425,6.8515,131.36,131.3,40.058133]
[1726472138845,6.8515,131.36,131.31,6.8536]
[1726472140815,6.8519,131.35,131.31,6.8536]
[1726472141717,23.776884,131.37,131.3,17.393033]
[1726472141923,6.8526,131.34,131.3,17.393033]
[1726472144425,6.8526,131.34,131.3,24.247533]
[1726472145747,6.853,131.33,131.3,17.393033]
[1726472146626,6.853,131.33,131.3,0.257233]
[1726472148813,33.776884,131.37,131.3,7.111633]
[1726472150420,6.8524,131.34,131.3,7.111633]
[1726472152242,6.8519,131.35,131.31,6.8539]
[1726472152433,6.8505,131.38,131.33,6.8525]
[1726472152748,0.2572,131.39,131.33,6.8525]
[1726472152749,6.8509,131.37,131.33,6.8525]
[1726472153744,6.8509,131.37,131.32,6.8533]
[1726472153954,6.8518,131.36,131.31,46.5094]
[1726472154826,6.8518,131.36,131.32,6.8534]
[1726472157757,6.8518,131.36,131.31,46.5097]
[1726472157940,6.8524,131.34,131.31,39.6559]
[1726472158256,6.853,131.33,131.31,22.5212]
[1726472159052,6.8535,131.32,131.3,0.257233]
[1726472160152,6.8531,131.33,131.3,0.257233]
[1726472166458,6.8526,131.34,131.3,7.111333]
[1726472166667,17.1282,131.37,131.31,6.8538]
[1726472168248,6.8519,131.35,131.31,6.8538]
[1726472169849,6.8515,131.36,131.32,29.5929]
[1726472173976,6.8509,131.37,131.33,8.37492396]
[1726472174273,6.8509,131.37,131.33,6.8529]
[1726472174967,17.1242,131.4,131.32,39.8729]
[1726472174968,43.776884,131.39,131.32,22.7395]
[1726472175850,6.8522,131.35,131.32,22.7395]
[1726472176853,6.8524,131.34,131.32,22.7395]
[1726472186887,6.8529,131.33,131.3,0.257233]
[1726472188863,17.126,131.38,131.3,7.111533]
[1726472188864,6.8525,131.34,131.3,7.111533]
[1726472207817,106.81096494,131.39,131.33,6.8527]
[1726472208012,21.32814986,131.4,131.32,1.52219173]
[1726472209112,21.32814986,131.4,131.33,21.9191]
[1726472209113,6.8512,131.37,131.33,21.9191]
[1726472211023,67.123,131.41,131.33,23.44172086]
[1726472211213,6.8503,131.38,131.33,30.29452086]
[1726472211614,6.8503,131.38,131.33,28.7719]
[1726472213527,6.851,131.37,131.33,28.7719]
[1726472223001,6.8505,131.38,131.34,6.8523]
[1726472223201,6.8505,131.38,131.33,47.42458165]
[1726472223415,6.8509,131.37,131.33,45.9037]
[1726472226929,34.4907,131.45,131.33,45.9037]
[1726472226930,17.376233,131.44,131.38,16.4365]
[1726472227129,6.8498,131.39,131.38,16.4365]
[1726472227420,6.8494,131.4,131.38,16.4365]
[1726472235326,17.376233,131.44,131.38,16.4365]
[1726472235327,6.8498,131.39,131.38,16.4365]
[1726472235530,6.8504,131.38,131.35,6.449]
[1726472236626,17.121,131.42,131.35,6.449]
[1726472236827,6.8508,131.37,131.35,6.449]
[1726472240420,6.8504,131.38,131.35,6.449]
[1726472241518,77.121,131.42,131.33,6.8528]
[1726472241519,6.851,131.37,131.33,6.8528]
[1726472244239,6.851,131.37,131.32,6.8533]
[1726472244439,6.8514,131.36,131.31,46.0432]
[1726472245026,6.8525,131.34,131.31,39.1893]
[1726472245623,23.776884,131.37,131.31,22.0552]
[1726472246833,23.776884,131.37,131.31,39.19]
[1726472247047,23.776884,131.37,131.31,46.0439]
[1726472248231,6.8517,131.36,131.31,46.0439]
[1726472257547,6.8519,131.35,131.31,46.0439]
[1726472258341,6.8524,131.34,131.31,39.19]
[1726472258741,6.8521,131.35,131.31,39.19]
[1726472258948,6.8521,131.35,131.31,46.0439]
[1726472261364,6.8515,131.36,131.32,6.8534]
[1726472263080,23.776884,131.38,131.31,46.0439]
[1726472263081,6.8519,131.35,131.31,46.0439]
[1726472264980,23.776884,131.38,131.31,39.19]
[1726472265149,6.8514,131.36,131.31,39.19]
[1726472265473,6.8514,131.36,131.31,46.0435]
[1726472273673,6.852,131.35,131.31,46.0435]
[1726472283881,6.8515,131.36,131.32,7.73358105]
[1726472284085,6.8509,131.37,131.34,22.7936]
[1726472284893,4.34693475,131.4,131.34,22.7936]
[1726472284894,1.32788118,131.4,131.34,22.7936]
[1726472285080,17.1217,131.42,131.35,0.91075941]
[1726472285282,6.8494,131.4,131.36,6.8513]
[1726472287874,6.8494,131.4,131.35,23.9811]
[1726472288097,6.8501,131.39,131.35,23.9811]
[1726472288411,6.8504,131.38,131.35,17.1294]
[1726472289372,6.8509,131.37,131.34,22.7936]
[1726472306696,6.8505,131.38,131.34,29.646]
[1726472308406,6.85,131.39,131.35,8.37420778]
[1726472308626,6.85,131.39,131.35,6.8518]
[1726472311414,6.8504,131.38,131.34,46.7765]
[1726472318914,6.85,131.39,131.35,6.8519]
[1726472324321,6.8503,131.38,131.34,46.7766]
[1726472331747,6.85,131.39,131.35,6.8518]
[1726472335725,6.85,131.39,131.34,39.9244]
[1726472335726,6.8503,131.38,131.34,46.7766]
[1726472338344,6.8509,131.37,131.34,22.7936]
[1726472338543,17.1217,131.42,131.34,22.7936]
[1726472338544,6.8514,131.36,131.34,22.7936]
[1726472338722,6.8519,131.35,131.34,22.7936]
[1726472340153,6.8515,131.36,131.34,22.7936]
[1726472340733,23.776884,131.39,131.34,22.7936]
[1726472340734,6.8509,131.37,131.34,22.7936]
[1726472356062,6.8499,131.39,131.35,6.8518]
[1726472358150,6.8503,131.38,131.34,29.6458]
[1726472361856,6.8509,131.37,131.34,22.7936]
[1726472370662,6.8515,131.36,131.34,22.7936]
[1726472372972,6.8519,131.35,131.34,22.7936]
[1726472374183,6.8519,131.35,131.34,16.5282]
[1726472377873,6.8514,131.36,131.34,16.5282]
[1726472378171,6.851,131.37,131.34,16.5282]
[1726472380370,17.1252,131.39,131.34,16.5282]
[1726472381073,6.8514,131.36,131.34,16.5282]
[1726472382981,6.8519,131.35,131.34,16.5282]
[1726472383183,6.8529,131.34,131.31,6.4741]
[1726472395217,6.852,131.35,131.31,13.328]
[1726472400108,6.8527,131.34,131.31,6.4741]
[1726472402546,6.852,131.35,131.31,13.328]
[1726472410749,6.8514,131.36,131.32,6.8534]
[1726472410933,6.851,131.37,131.33,8.37548923]
[1726472411139,6.8514,131.36,131.33,6.8529]
[1726472411338,6.8514,131.36,131.32,6.8533]
[1726472411947,6.8524,131.34,131.31,23.6089]
[1726472413859,6.8521,131.35,131.31,30.4628]
[1726472414652,6.8526,131.34,131.31,23.6089]
[1726472414858,20.0,131.38,131.31,23.6089]
[1726472416336,6.8521,131.35,131.31,23.6089]
[1726472417768,6.8521,131.35,131.31,30.4627]
[1726472427356,6.8525,131.34,131.31,6.4741]
[1726472427556,20.0,131.36,131.31,6.4741]
[1726472427768,6.8534,131.32,131.31,6.4741]
[1726472429455,6.854,131.31,131.3,16.527233]
[1726472430880,6.854,131.31,131.3,0.257233]
[1726472441897,50.630884,131.31,131.3,0.257233]
[1726472442207,50.630884,131.31,131.26,0.257233]
[1726472442208,6.856,131.27,131.26,0.257233]
[1726472443271,50.632884,131.27,131.26,0.131833]
[1726472443493,6.8581,131.23,131.22,6.476033]
[1726472444210,6.8581,131.23,131.22,0.257233]
[1726472449004,6.8578,131.24,131.22,0.257233]
[1726472450020,6.8581,131.23,131.22,0.257233]
[1726472464201,6.8581,131.24,131.22,0.257233]
[1726472464393,6.8572,131.25,131.22,0.257233]
[1726472464601,6.8567,131.26,131.22,1.78107733]
[1726472465203,6.8563,131.27,131.23,13.2959]
[1726472465404,6.8563,131.27,131.23,6.4378]
[1726472466434,6.8563,131.27,131.23,7.9615208]
[1726472467798,6.8563,131.27,131.23,14.8196208]
[1726472470305,6.8563,131.27,131.23,13.2959]
[1726472473931,6.8563,131.27,131.24,1.5236466]
[1726472474526,6.8555,131.29,131.25,16.182]
[1726472475229,6.8555,131.28,131.25,16.182]
[1726472476415,23.776884,131.32,131.25,23.0391]
[1726472476619,6.8551,131.29,131.25,23.0391]
[1726472477909,6.8551,131.29,131.25,20.5391]
[1726472497750,6.8557,131.28,131.25,13.682]
[1726472504430,6.8551,131.29,131.25,20.539]
[1726472504639,6.8544,131.31,131.26,14.73229946]
[1726472504866,6.8545,131.3,131.27,1.52329702]
[1726472505028,6.8545,131.3,131.26,13.2088]
[1726472506055,6.8545,131.3,131.26,14.73163567]
[1726472506536,6.8545,131.3,131.26,13.2088]
[1726472508957,6.8545,131.3,131.26,6.3526]
[1726472509865,6.8551,131.29,131.26,6.3526]
[1726472515993,6.8547,131.3,131.26,13.2089]
[1726472517868,6.8541,131.31,131.27,6.856]
[1726472518386,6.8545,131.3,131.26,13.2091]
[1726472524196,6.8553,131.29,131.26,6.3526]
[1726472525286,6.8547,131.3,131.26,6.3526]
[1726472525886,6.8547,131.3,131.26,13.209]
[1726472531716,6.8547,131.3,131.26,6.3526]
[1726472532416,20.0,131.32,131.26,6.3526]
[1726472532592,6.856,131.27,131.26,6.3526]
[1726472534023,6.8566,131.26,131.25,13.682]
[1726472534225,17.1356,131.31,131.23,6.5408]
[1726472534226,6.8576,131.24,131.23,6.5408]
[1726472534396,17.1392,131.28,131.23,6.5408]
[1726472534721,6.8572,131.25,131.23,6.5408]
[1726472540825,6.8566,131.26,131.23,6.5408]
[1726472541802,53.15830416,131.3,131.23,6.5408]
[1726472541803,6.8572,131.25,131.23,6.5408]
[1726472545458,6.8567,131.26,131.23,6.5408]
[1726472550402,17.1358,131.31,131.23,8.06362874]
[1726472550609,6.8557,131.28,131.24,8.3802127]
[1726472551002,6.8557,131.28,131.24,1.5227127]
[1726472552235,6.8562,131.27,131.24,1.5227127]
[1726472552437,6.8562,131.27,131.23,30.5438]
[1726472558441,6.8562,131.27,131.24,1.52357926]
[1726472558929,6.8562,131.27,131.23,30.5438]
[1726472560659,6.8562,131.27,131.24,1.52355248]
[1726472561444,6.8562,131.27,131.23,30.5438]
[1726472563989,6.8566,131.26,131.23,23.6858]
[1726472566349,6.8566,131.26,131.23,6.5408]
[1726472574069,6.8566,131.26,131.24,1.52349406]
[1726472574358,20.26084429,131.31,131.24,1.52349406]
[1726472574359,6.8563,131.27,131.24,1.52349406]
[1726472574660,6.8557,131.28,131.24,6.8576]
[1726472575141,6.8561,131.27,131.23,13.3987]
[1726472599580,6.8567,131.26,131.23,6.5408]
[1726472609795,6.8562,131.27,131.24,1.52271052]
[1726472609989,6.8562,131.27,131.23,13.3988]
[1726472613069,6.8566,131.26,131.23,6.5408]
[1726472616091,7.6179,131.27,131.23,14.1606]
[1726472619680,7.6185,131.26,131.23,6.5408]
[1726472636486,7.6193,131.25,131.23,6.5408]
[1726472636694,19.042,131.29,131.23,6.5408]
[1726472637587,7.6196,131.24,131.23,6.5408]
[1726472637787,7.6192,131.25,131.23,6.5408]
[1726472639619,7.6196,131.24,131.23,6.5408]
[1726472642811,7.6192,131.25,131.23,6.5408]
[1726472643797,19.042,131.29,131.23,6.5408]
[1726472643798,7.6185,131.26,131.23,6.5408]
[1726472645419,3.12504429,131.31,131.23,25.5907]
[1726472645612,20.0,131.3,131.23,25.5907]
[1726472646313,7.6179,131.27,131.23,33.2107]
[1726472654214,7.6185,131.26,131.23,25.5907]
[1726472661411,7.6185,131.26,131.24,1.52372507]
[1726472663709,7.6185,131.26,131.23,25.5907]
[1726472665629,7.6185,131.26,131.23,26.61597439]
[1726472665825,7.6181,131.27,131.24,1.02464941]
[1726472666220,7.6181,131.27,131.23,33.2109]
[1726472669837,7.6181,131.27,131.24,1.52266963]
[1726472674635,7.6181,131.27,131.23,33.2109]
[1726472677348,7.6181,131.27,131.24,1.52174145]
[1726472677943,7.6181,131.27,131.23,33.2109]
[1726472681621,20.0,131.27,131.22,16.506733]
[1726472681824,7.6202,131.23,131.22,0.257233]
[1726472729981,7.6202,131.23,131.18,0.257233]
[1726472729982,3.13749455,131.26,131.18,0.257233]
[1726472729983,19.0523,131.22,131.18,0.257233]
[1726472730303,7.6225,131.19,131.18,0.257233]
[1726472763745,7.6214,131.21,131.18,6.443733]
[1726472763947,20.0,131.23,131.18,6.443733]
[1726472764346,19.0486,131.25,131.18,6.443733]
[1726472764678,7.6197,131.24,131.2,15.6397]
[1726472765384,7.619,131.26,131.2,23.2615]
[1726472765666,19.0437,131.28,131.2,23.2615]
[1726472765893,19.0437,131.28,131.22,6.1865]
[1726472766166,7.6189,131.26,131.22,6.1865]
[1726472767573,10.25316836,131.25,131.22,6.1865]
[1726472768243,7.6197,131.24,131.22,6.1865]
[1726472768845,7.6185,131.26,131.22,6.1865]
[1726472769688,7.6185,131.26,131.22,13.8072]
[1726472770165,7.6185,131.26,131.22,6.1865]
[1726472772395,7.6185,131.26,131.23,16.1057]
[1726472773698,7.6185,131.26,131.23,16.1057]
[1726472776879,39.0436,131.28,131.23,16.1057]
[1726472777070,39.0436,131.28,131.22,6.1865]
[1726472777273,10.25316836,131.27,131.22,6.1865]
[1726472777486,7.6202,131.23,131.22,6.1865]
[1726472779103,7.6197,131.24,131.22,6.1865]
[1726472787924,39.0436,131.28,131.22,6.1865]
[1726472788619,7.619,131.25,131.22,13.8072]
[1726472789330,20.0,131.29,131.22,25.2382]
[1726472790311,7.6184,131.26,131.22,32.8588]
[1726472790724,7.6191,131.25,131.22,6.1865]
[1726472792510,7.6185,131.26,131.22,13.8071]
[1726472796753,7.6172,131.29,131.23,16.2045]
[1726472796919,9.7136815,131.31,131.24,1.52325901]
[1726472796920,6.57649564,131.31,131.24,1.52325901]
[1726472797119,6.57649564,131.31,131.23,35.2539]
[1726472797424,6.57649564,131.31,131.23,16.2045]
[1726472797615,7.6192,131.25,131.23,16.2045]
[1726472798320,7.6186,131.26,131.23,16.2045]
[1726472799136,7.618,131.27,131.23,16.2045]
[1726472801214,7.6185,131.26,131.23,16.2045]
[1726472802121,7.6191,131.25,131.23,16.2045]
[1726472802624,7.6186,131.26,131.23,16.2045]
[1726472807132,7.618,131.27,131.23,23.8246]
[1726472808627,7.6175,131.28,131.25,6.586]
[1726472813852,20.0,131.31,131.26,1.52271743]
[1726472814059,7.6167,131.29,131.27,15.5464]
[1726472815865,0.257233,131.32,131.27,15.5464]
[1726472816079,0.257233,131.32,131.28,6.646]
[1726472816363,7.872333,131.32,131.28,6.646]
[1726472816950,7.6156,131.31,131.28,6.646]
[1726472822468,7.6163,131.3,131.28,6.646]
[1726472822767,0.257233,131.32,131.28,6.646]
[1726472822768,7.6157,131.31,131.28,6.646]
[1726472831052,7.6161,131.3,131.28,6.646]
[1726472831255,0.257233,131.32,131.27,15.5464]
[1726472831256,7.6172,131.29,131.27,15.5464]
[1726472832072,7.6184,131.26,131.25,6.3471]
[1726472832451,7.618,131.27,131.25,6.3471]
[1726472833086,19.0397,131.31,131.25,6.3471]
[1726472833087,7.6173,131.28,131.25,6.3471]
[1726472833584,19.0397,131.31,131.25,13.9661]
[1726472833585,7.6169,131.29,131.25,13.9661]
[1726472834894,7.6174,131.28,131.25,6.3471]
[1726472840691,7.6169,131.29,131.25,13.9658]
[1726472841191,7.6162,131.3,131.26,7.6184]
[1726472841387,7.6162,131.3,131.26,8.03859355]
[1726472841588,7.6162,131.3,131.27,0.42016154]
[1726472841781,20.257233,131.32,131.28,15.0517]
[1726472841782,0.257233,131.32,131.28,15.0517]
[1726472841987,0.257233,131.32,131.29,7.62071293]
[1726472842677,7.872533,131.32,131.29,7.62071293]
[1726472844497,0.257233,131.32,131.29,13.7141]
[1726472849685,0.257233,131.32,131.3,9.13897685]
[1726472850190,0.257233,131.32,131.31,30.3717]
[1726472850910,0.257233,131.32,131.31,22.7562]
[1726472856214,7.872133,131.32,131.31,22.7562]
[1726472861321,0.257233,131.32,131.31,22.7562]
[1726472862200,0.257233,131.32,131.31,46.07373614]
[1726472862410,0.257233,131.36,131.31,46.07373614]
[1726472862411,0.257233,131.36,131.35,7.6132]
[1726472862613,0.257233,131.36,131.35,29.3887]
[1726472864401,0.257233,131.4,131.36,7.6124]
[1726472865012,0.257233,131.4,131.37,7.6119]
[1726472865522,0.257233,131.4,131.35,64.584184]
[1726472865523,0.257233,131.4,131.38,24.83461935]
[1726472865710,0.257233,131.4,131.38,23.31323614]
[1726472867110,0.257233,131.4,131.38,7.6112]
[1726472869207,0.257233,131.4,131.39,7.6109]
[1726472871136,0.257233,131.4,131.39,9.13177504]
[1726472871635,0.257233,131.44,131.41,19.024]
[1726472871941,0.257233,131.44,131.43,7.6086]
[1726472872455,0.257233,131.44,131.43,24.83079548]
[1726472873021,0.257233,131.44,131.43,71.16847948]
[1726472873408,0.257233,131.48,131.44,19.0193]
[1726472873622,0.257233,131.48,131.46,7.6068]
[1726472874132,0.257233,131.48,131.46,9.12776672]
[1726472874520,0.257233,131.48,131.46,7.6068]
[1726472874726,7.9087935,131.51,131.46,7.6068]
[1726472877210,7.9087935,131.51,131.47,1.52097036]
[1726472877211,0.3045935,131.51,131.47,1.52097036]
[1726472878427,0.3045935,131.51,131.48,7.6055]
[1726472878738,0.3045935,131.51,131.49,1.52073533]
[1726472879225,0.3045935,131.51,131.48,7.6055]
[1726472879533,0.3045935,131.51,131.49,9.12583276]
[1726472879709,0.3045935,131.51,131.49,32.01913276]
[1726472880638,0.3045935,131.51,131.49,30.4984]
[1726472881834,0.3045935,131.51,131.5,1.52073311]
[1726472882722,0.3045935,131.51,131.49,32.01911737]
[1726472883038,0.3045935,131.51,131.49,30.4984]
[1726472883827,0.3045935,131.51,131.5,1.52025996]
[1726472884034,0.3045935,131.51,131.47,7.6062]
[1726472884337,0.3045935,131.51,131.45,22.0843]
[1726472884543,7.6047,131.5,131.45,29.6914]
[1726472884744,0.3045935,131.51,131.43,7.6081]
[1726472885041,7.6068,131.46,131.41,48.7176]
[1726472885249,7.6067,131.47,131.41,48.7173]
[1726472885449,7.6057,131.48,131.42,1.52086924]
[1726472885639,7.6057,131.48,131.43,7.6084]
[1726472885961,7.6064,131.47,131.42,7.6091]
[1726472886879,19.3152935,131.51,131.41,41.108]
[1726472886880,43.776884,131.5,131.41,48.7176]
[1726472887246,7.6075,131.45,131.41,41.108]
[1726472888161,7.6081,131.44,131.41,22.0843]
[1726472888755,7.6075,131.45,131.41,22.0843]
[1726472889259,7.6085,131.44,131.39,7.6108]
[1726472889834,7.6085,131.44,131.38,41.6022]
[1726472889835,7.6092,131.42,131.38,41.6022]
[1726472890159,7.6085,131.44,131.38,41.6022]
[1726472890536,7.6086,131.43,131.38,41.6022]
[1726472890761,7.6086,131.43,131.38,49.2136]
[1726472892866,7.6092,131.42,131.38,41.6022]
[1726472893937,7.6097,131.41,131.38,22.5741]
[1726472894247,23.776884,131.44,131.4,7.6098]
[1726472894451,20.0,131.46,131.38,22.5741]
[1726472894946,23.0144,131.47,131.38,22.5741]
[1726472895142,23.0144,131.47,131.39,1.52122621]
[1726472895342,7.6081,131.44,131.39,28.15812621]
[1726472895846,7.6075,131.45,131.4,7.6102]
[1726472896563,7.6081,131.44,131.4,7.6102]
[1726472896743,7.6081,131.44,131.4,9.1319647]
[1726472897139,7.6081,131.44,131.4,7.6102]
[1726472897634,7.6081,131.44,131.4,9.13196377]
[1726472897840,7.6081,131.44,131.4,9.13196337]
[1726472898150,7.6081,131.44,131.4,7.6102]
[1726472898347,7.6075,131.45,131.41,7.6097]
[1726472898844,7.6075,131.45,131.4,7.6102]
[1726472900768,7.6075,131.45,131.41,7.6097]
[1726472900965,7.607,131.46,131.42,9.1298238]
[1726472901175,7.607,131.46,131.42,7.6091]
[1726472901341,7.607,131.46,131.42,9.13060954]
[1726472901947,7.607,131.46,131.42,7.6091]
[1726472902651,7.607,131.46,131.43,1.52151198]
[1726472902852,7.6064,131.47,131.43,1.52151198]
[1726472903349,20.0,131.49,131.43,1.52151198]
[1726472903552,7.6058,131.48,131.44,22.1596]
[1726472903872,7.6051,131.49,131.44,22.1596]
[1726472904672,7.6051,131.49,131.44,29.7674]
[1726472905571,7.6058,131.48,131.44,29.7674]
[1726472910154,7.6052,131.49,131.45,7.6074]
[1726472910563,7.6052,131.49,131.44,29.7674]
[1726472912088,7.6058,131.48,131.44,29.7674]
[1726472912975,7.6065,131.47,131.44,22.1596]
[1726472913577,7.6059,131.48,131.44,22.1596]
[1726472915871,7.6063,131.47,131.44,22.1596]
[1726472916075,19.0132,131.49,131.44,22.1596]
[1726472916277,23.776884,131.48,131.44,22.1596]
[1726472916773,7.6074,131.45,131.44,15.8262]
[1726472917405,23.776884,131.48,131.44,15.8262]
[1726472917684,7.6055,131.49,131.45,7.6074]
[1726472918185,7.6055,131.49,131.44,23.434]
[1726472918394,20.3045935,131.51,131.45,1.52028037]
[1726472918395,7.6059,131.48,131.45,1.52028037]
[1726472918577,7.6059,131.48,131.44,23.434]
[1726472924100,7.6059,131.48,131.44,15.8262]
[1726472927704,7.6064,131.47,131.44,15.8262]
[1726472928204,7.6071,131.46,131.44,15.8262]
[1726472929614,7.6074,131.45,131.44,15.8262]
[1726472931806,70.3045935,131.51,131.44,15.8262]
[1726472931807,20.3045935,131.51,131.44,15.8262]
[1726472932012,7.6055,131.49,131.45,1.52132448]
[1726472932192,7.6056,131.49,131.44,23.4338]
[1726472933205,7.6047,131.5,131.46,6.2678]
[1726472936410,8.0369639,131.5,131.46,6.2678]
[1726472940313,7.6051,131.49,131.46,6.2678]
[1726472940515,0.4322639,131.5,131.46,6.2678]
[1726472940516,7.6059,131.48,131.46,6.2678]
[1726472940693,7.6052,131.49,131.46,6.2678]
[1726472942107,8.0367639,131.5,131.46,15.3957818]
[1726472942313,8.0367639,131.5,131.46,13.8746]
[1726472942694,0.4322639,131.5,131.46,6.2678]
[1726472943501,7.6062,131.47,131.46,6.2678]
[1726472944623,7.608,131.44,131.42,6.2289]
[1726472944828,7.6075,131.45,131.42,6.2289]
[1726472945315,7.6083,131.44,131.42,6.2289]
[1726472945499,23.776884,131.48,131.42,6.2289]
[1726472945705,7.6076,131.45,131.42,6.2289]
[1726472946600,7.6082,131.44,131.42,6.2289]
[1726472946953,7.6086,131.43,131.41,15.8879]
[1726472947220,7.6091,131.42,131.41,15.8879]
[1726472955310,7.6086,131.43,131.41,15.8879]
[1726472956319,7.6091,131.42,131.41,15.8879]
[1726472961641,7.6087,131.43,131.41,15.8879]
[1726472963848,0.1783628,131.46,131.41,15.8879]
[1726472964149,7.6091,131.42,131.41,15.8879]
[1726472969858,7.6087,131.43,131.41,15.8879]
[1726472971750,7.6082,131.44,131.41,15.8879]
[1726472971961,7.6082,131.44,131.41,17.40881786]
[1726472972340,7.6082,131.44,131.41,15.8879]
[1726472972730,7.6076,131.45,131.41,15.8879]
[1726472973371,7.6076,131.45,131.41,23.4976]
[1726472976154,0.1783628,131.46,131.42,15.73969788]
[1726472976460,0.1783628,131.46,131.43,7.6085]